fUSD/lending_fUSD_20250618
["ID","MTS","AMOUNT","RATE_DAILY","PERIOD"]
[366360430,1750211432192,-223.16,0.00016428,2]
[366360476,1750211432607,-833.87704394,0.0001643,2]
[366360478,1750211432617,-6152.8450389,0.00016437,2]
[366360480,1750211432627,-28423.95136945,0.00016437,2]
[366360482,1750211432637,-2000.0,0.00016437,2]
[366360484,1750211432648,-500.0,0.00016437,2]
[366360486,1750211432658,-176.37068228,0.00016437,2]
[366360488,1750211432667,-501.2998748,0.00016437,2]
[366360490,1750211432677,-510.83313631,0.00016437,2]
[366360492,1750211432687,-501.37028697,0.00016437,2]
[366360494,1750211432696,-194.68593661,0.00016437,2]
[366360496,1750211432706,-215.60215621,0.00016437,2]
[366360498,1750211432716,-500.0,0.00016437,2]
[366360500,1750211432725,-396.68457605,0.00016437,2]
[366360502,1750211432734,-500.0,0.00016437,2]
[366360504,1750211432744,-500.0,0.00016437,2]
[366360506,1750211432754,-500.0,0.00016437,2]
[366360508,1750211432763,-36.33523678,0.00016437,2]
[366360511,1750211432775,-463.66476322,0.00016437,2]
[366360513,1750211432784,-500.0,0.00016437,2]
[366360515,1750211432793,-428.58713247,0.00016437,2]
[366360517,1750211432803,-500.0,0.00016437,2]
[366360519,1750211432812,-500.0,0.00016437,2]
[366360520,1750211432822,-500.0,0.00016437,2]
[366360522,1750211432831,-412.74157774,0.00016437,2]
[366360524,1750211432841,-544.0,0.00016438,2]
[366360526,1750211432850,-2603.625572,0.00016438,2]
[366360528,1750211432860,-2546.450468,0.00016438,2]
[366360530,1750211432870,-151.0,0.00016438,2]
[366360533,1750211432879,-252.011681,0.00016438,2]
[366360535,1750211432890,-490.0,0.00016438,2]
[366360537,1750211432899,-491.55157155,0.00016438,2]
[366360538,1750211432908,-491.31422105,0.00016438,2]
[366360539,1750211432917,-490.0,0.00016438,2]
[366360540,1750211432926,-450.84071611,0.00016438,2]
[366360541,1750211432936,-490.0,0.00016438,2]
[366360542,1750211432946,-490.0,0.00016438,2]
[366360543,1750211432955,-490.0,0.00016438,2]
[366360544,1750211432965,-592.26,0.00016438,2]
[366360545,1750211432974,-591.55,0.00016438,2]
[366360546,1750211432983,-490.0,0.00016438,2]
[366360547,1750211432993,-824.84,0.00016438,2]
[366360548,1750211433002,-490.0,0.00016438,2]
[366360549,1750211433012,-342.17788875,0.00016438,2]
[366360550,1750211433022,-490.0,0.00016438,2]
[366360552,1750211433031,-749.2,0.00016438,2]
[366360554,1750211433042,-1000.0,0.00016438,2]
[366360556,1750211433054,-490.0,0.00016438,2]
[366360558,1750211433068,-490.0,0.00016438,2]
[366360560,1750211433079,-490.0,0.00016438,2]
[366360562,1750211433090,-646.13,0.00016438,2]
[366360565,1750211433102,-490.0,0.00016438,2]
[366360567,1750211433113,-490.0,0.00016438,2]
[366360569,1750211433124,-490.0,0.00016438,2]
[366360571,1750211433134,-490.0,0.00016438,2]
[366360573,1750211433144,-490.0,0.00016438,2]
[366360575,1750211433155,-490.0,0.00016438,2]
[366360577,1750211433167,-151.0,0.00016438,2]
[366360579,1750211433177,-490.0,0.00016438,2]
[366360581,1750211433188,-151.0,0.00016438,2]
[366360583,1750211433199,-490.0,0.00016438,2]
[366360585,1750211433210,-151.0,0.00016438,2]
[366360587,1750211433221,-151.0,0.00016438,2]
[366360590,1750211433232,-165.341769,0.00016438,2]
[366360592,1750211433243,-490.0,0.00016438,2]
[366360594,1750211433252,-780.51,0.00016438,2]
[366360595,1750211433262,-490.0,0.00016438,2]
[366360597,1750211433273,-490.0,0.00016438,2]
[366360600,1750211433284,-151.0,0.00016438,2]
[366360601,1750211433294,-151.0,0.00016438,2]
[366360604,1750211433305,-153.267599,0.00016438,2]
[366360606,1750211433319,-490.0,0.00016438,2]
[366360608,1750211433329,-646.71,0.00016438,2]
[366360610,1750211433344,-151.0,0.00016438,2]
[366360611,1750211433358,-151.0,0.00016438,2]
[366360613,1750211433369,-490.0,0.00016438,2]
[366360615,1750211433382,-280.017076,0.00016438,2]
[366360618,1750211433393,-490.0,0.00016438,2]
[366360620,1750211433403,-490.0,0.00016438,2]
[366360622,1750211433415,-490.0,0.00016438,2]
[366360624,1750211433425,-537.26,0.00016438,2]
[366360626,1750211433435,-490.0,0.00016438,2]
[366360627,1750211433445,-490.0,0.00016438,2]
[366360630,1750211433456,-513.03,0.00016438,2]
[366360631,1750211433465,-490.0,0.00016438,2]
[366360633,1750211433476,-490.0,0.00016438,2]
[366360636,1750211433486,-612.14,0.00016438,2]
[366360638,1750211433497,-615.99,0.00016438,2]
[366360640,1750211433507,-490.0,0.00016438,2]
[366360642,1750211433518,-490.0,0.00016438,2]
[366360644,1750211433527,-490.0,0.00016438,2]
[366360646,1750211433537,-490.0,0.00016438,2]
[366360648,1750211433547,-490.0,0.00016438,2]
[366360650,1750211433558,-495.13,0.00016438,2]
[366360652,1750211433568,-490.0,0.00016438,2]
[366360654,1750211433578,-490.0,0.00016438,2]
[366360656,1750211433588,-490.0,0.00016438,2]
[366360658,1750211433598,-1496.47,0.00016438,2]
[366360660,1750211433609,-490.0,0.00016438,2]
[366360662,1750211433619,-490.0,0.00016438,2]
[366360664,1750211433630,-867.47,0.00016438,2]
[366360666,1750211433640,-1376.57,0.00016438,2]
[366360668,1750211433651,-490.0,0.00016438,2]
[366360670,1750211433662,-490.0,0.00016438,2]
[366360672,1750211433672,-369.57500682,0.00016438,2]
[366360674,1750211433682,-535.95,0.00016438,2]
[366360676,1750211433692,-490.0,0.00016438,2]
[366360678,1750211433701,-490.0,0.00016438,2]
[366360680,1750211433713,-640.09,0.00016438,2]
[366360682,1750211433723,-490.0,0.00016438,2]
[366360684,1750211433733,-490.0,0.00016438,2]
[366360686,1750211433744,-610.14,0.00016438,2]
[366360688,1750211433754,-151.0,0.00016438,2]
[366360690,1750211433764,-151.0,0.00016438,2]
[366360692,1750211433775,-151.0,0.00016438,2]
[366360694,1750211433785,-151.0,0.00016438,2]
[366360697,1750211433795,-151.0,0.00016438,2]
[366360699,1750211433806,-160.463685,0.00016438,2]
[366360701,1750211433817,-595.36,0.00016438,2]
[366360703,1750211433827,-490.0,0.00016438,2]
[366360705,1750211433837,-490.0,0.00016438,2]
[366360707,1750211433846,-490.0,0.00016438,2]
[366360709,1750211433856,-490.0,0.00016438,2]
[366360711,1750211433866,-288.78893371,0.00016438,2]
[366360713,1750211433876,-490.0,0.00016438,2]
[366360715,1750211433886,-490.0,0.00016438,2]
[366360717,1750211433895,-528.15,0.00016438,2]
[366360719,1750211433905,-173.27435948,0.00016438,2]
[366360722,1750211433927,-316.72564052,0.00016438,2]
[366360724,1750211433936,-317.42861258,0.00016438,2]
[366361073,1750211437567,-168.69320797,0.00016338,2]
[366361075,1750211437577,-418.18138742,0.00016438,2]
[366361076,1750211437587,-151.0,0.00016438,2]
[366361078,1750211437596,-151.0,0.00016438,2]
[366361080,1750211437606,-77.33647328,0.00016438,2]
[366361083,1750211437623,-160.28587372,0.00016438,2]
[366361084,1750211437632,-151.0,0.00016438,2]
[366361086,1750211437642,-151.0,0.00016438,2]
[366361088,1750211437652,-151.0,0.00016438,2]
[366361090,1750211437663,-151.0,0.00016438,2]
[366361092,1750211437674,-490.0,0.00016438,2]
[366361094,1750211437684,-151.0,0.00016438,2]
[366361096,1750211437694,-151.0,0.00016438,2]
[366361098,1750211437705,-151.0,0.00016438,2]
[366361100,1750211437714,-490.0,0.00016438,2]
[366361102,1750211437724,-151.0,0.00016438,2]
[366361104,1750211437733,-151.0,0.00016438,2]
[366361105,1750211437744,-151.0,0.00016438,2]
[366361106,1750211437753,-151.0,0.00016438,2]
[366361107,1750211437762,-283.948284,0.00016438,2]
[366361108,1750211437772,-490.0,0.00016438,2]
[366361109,1750211437782,-490.0,0.00016438,2]
[366361110,1750211437792,-656.38,0.00016438,2]
[366361111,1750211437802,-605.83,0.00016438,2]
[366361112,1750211437812,-490.0,0.00016438,2]
[366361113,1750211437822,-490.0,0.00016438,2]
[366361114,1750211437832,-490.0,0.00016438,2]
[366361115,1750211437842,-490.0,0.00016438,2]
[366361116,1750211437851,-701.7,0.00016438,2]
[366361117,1750211437861,-151.0,0.00016438,2]
[366361118,1750211437870,-151.0,0.00016438,2]
[366361119,1750211437880,-151.0,0.00016438,2]
[366361120,1750211437890,-151.0,0.00016438,2]
[366361121,1750211437899,-151.0,0.00016438,2]
[366361122,1750211437909,-151.0,0.00016438,2]
[366361123,1750211437919,-151.0,0.00016438,2]
[366361124,1750211437929,-151.0,0.00016438,2]
[366361125,1750211437939,-377.94902739,0.00016438,2]
[366361126,1750211437953,-408.62097261,0.00016438,2]
[366361127,1750211437963,-151.0,0.00016438,2]
[366361128,1750211437973,-157.114095,0.00016438,2]
[366361129,1750211437982,-490.0,0.00016438,2]
[366361131,1750211437992,-151.0,0.00016438,2]
[366361133,1750211438002,-204.86535354,0.00016438,2]
[366361135,1750211438014,-285.13464646,0.00016438,2]
[366361137,1750211438024,-490.0,0.00016438,2]
[366361139,1750211438033,-151.0,0.00016438,2]
[366361141,1750211438043,-151.0,0.00016438,2]
[366361143,1750211438052,-151.0,0.00016438,2]
[366361145,1750211438061,-151.0,0.00016438,2]
[366361146,1750211438071,-245.437498,0.00016438,2]
[366361148,1750211438080,-36.12785554,0.00016438,2]
[366361150,1750211438093,-686.37214446,0.00016438,2]
[366361152,1750211438102,-508.43535898,0.00016438,2]
[366361155,1750211438122,-222.81464102,0.00016438,2]
[366361158,1750211438132,-490.0,0.00016438,2]
[366361160,1750211438142,-490.0,0.00016438,2]
[366361162,1750211438152,-548.26,0.00016438,2]
[366361163,1750211438162,-490.0,0.00016438,2]
[366361165,1750211438172,-490.0,0.00016438,2]
[366361167,1750211438182,-490.0,0.00016438,2]
[366361169,1750211438192,-627.28,0.00016438,2]
[366361170,1750211438202,-490.0,0.00016438,2]
[366361171,1750211438212,-165.131969,0.00016438,2]
[366361172,1750211438223,-490.0,0.00016438,2]
[366361173,1750211438232,-490.0,0.00016438,2]
[366361174,1750211438242,-490.0,0.00016438,2]
[366361175,1750211438252,-490.0,0.00016438,2]
[366361176,1750211438262,-655.25,0.00016438,2]
[366361177,1750211438272,-559.95,0.00016438,2]
[366361178,1750211438283,-274.455233,0.00016438,2]
[366361179,1750211438292,-490.0,0.00016438,2]
[366361180,1750211438302,-490.0,0.00016438,2]
[366361181,1750211438314,-490.0,0.00016438,2]
[366361182,1750211438323,-622.05,0.00016438,2]
[366361183,1750211438335,-490.0,0.00016438,2]
[366361184,1750211438347,-490.0,0.00016438,2]
[366361185,1750211438358,-490.0,0.00016438,2]
[366361186,1750211438369,-490.0,0.00016438,2]
[366361187,1750211438380,-549.54,0.00016438,2]
[366361188,1750211438390,-490.0,0.00016438,2]
[366361189,1750211438400,-490.0,0.00016438,2]
[366361190,1750211438409,-490.0,0.00016438,2]
[366361191,1750211438421,-258.36775698,0.00016438,2]
[366361192,1750211438469,-46.24973495,0.00016438,2]
[366361193,1750211438479,-204.13411735,0.00016438,2]
[366361217,1750211439930,-285.86588265,0.00016438,2]
[366361218,1750211439941,-607.8,0.00016438,2]
[366361219,1750211439951,-1344.9,0.00016438,2]
[366361220,1750211439961,-490.0,0.00016438,2]
[366361221,1750211439971,-490.0,0.00016438,2]
[366361222,1750211439982,-607.83,0.00016438,2]
[366361223,1750211439993,-490.0,0.00016438,2]
[366361224,1750211440003,-514.31059108,0.00016438,2]
[366361225,1750211440012,-693.44,0.00016438,2]
[366361226,1750211440022,-490.0,0.00016438,2]
[366361227,1750211440032,-490.0,0.00016438,2]
[366361228,1750211440041,-490.0,0.00016438,2]
[366361229,1750211440050,-490.0,0.00016438,2]
[366361230,1750211440060,-1569.7,0.00016438,2]
[366361231,1750211440070,-1232.02,0.00016438,2]
[366361232,1750211440079,-1070.33,0.00016438,2]
[366361233,1750211440089,-490.0,0.00016438,2]
[366361234,1750211440098,-490.0,0.00016438,2]
[366361235,1750211440108,-490.0,0.00016438,2]
[366361236,1750211440118,-490.0,0.00016438,2]
[366361237,1750211440127,-490.0,0.00016438,2]
[366361238,1750211440137,-490.0,0.00016438,2]
[366361239,1750211440146,-490.0,0.00016438,2]
[366361240,1750211440156,-490.0,0.00016438,2]
[366361241,1750211440166,-490.0,0.00016438,2]
[366361242,1750211440175,-490.0,0.00016438,2]
[366361243,1750211440185,-490.0,0.00016438,2]
[366361244,1750211440195,-490.0,0.00016438,2]
[366361245,1750211440205,-490.0,0.00016438,2]
[366361246,1750211440215,-490.0,0.00016438,2]
[366361247,1750211440225,-490.0,0.00016438,2]
[366361248,1750211440234,-929.53,0.00016438,2]
[366361249,1750211440244,-712.64,0.00016438,2]
[366361251,1750211440253,-490.0,0.00016438,2]
[366361253,1750211440263,-1282.95,0.00016438,2]
[366361255,1750211440272,-1625.09,0.00016438,2]
[366361257,1750211440282,-490.0,0.00016438,2]
[366361259,1750211440291,-757.59,0.00016438,2]
[366361260,1750211440301,-490.0,0.00016438,2]
[366361261,1750211440311,-490.0,0.00016438,2]
[366361262,1750211440320,-490.0,0.00016438,2]
[366361263,1750211440331,-1441.35,0.00016438,2]
[366361264,1750211440344,-1283.6,0.00016438,2]
[366361265,1750211440353,-7.58351139,0.00016438,2]
[366361266,1750211440368,-482.41648861,0.00016438,2]
[366361267,1750211440379,-490.0,0.00016438,2]
[366361268,1750211440389,-490.0,0.00016438,2]
[366361269,1750211440399,-1142.8,0.00016438,2]
[366361270,1750211440409,-753.53,0.00016438,2]
[366361271,1750211440422,-490.0,0.00016438,2]
[366361272,1750211440433,-490.0,0.00016438,2]
[366361273,1750211440442,-817.31,0.00016438,2]
[366361274,1750211440452,-947.79,0.00016438,2]
[366361275,1750211440462,-490.0,0.00016438,2]
[366361276,1750211440472,-490.0,0.00016438,2]
[366361277,1750211440481,-517.58,0.00016438,2]
[366361278,1750211440491,-1534.72,0.00016438,2]
[366361279,1750211440502,-490.0,0.00016438,2]
[366361280,1750211440511,-490.0,0.00016438,2]
[366361281,1750211440521,-490.0,0.00016438,2]
[366361282,1750211440531,-490.0,0.00016438,2]
[366361283,1750211440541,-1784.99,0.00016438,2]
[366361284,1750211440550,-490.0,0.00016438,2]
[366361285,1750211440560,-613.12,0.00016438,2]
[366361286,1750211440570,-1059.92,0.00016438,2]
[366361287,1750211440579,-67.69856611,0.00016438,2]
[366361288,1750211440592,-422.30143389,0.00016438,2]
[366361289,1750211440740,-1209.19,0.00016438,2]
[366361290,1750211440751,-633.48,0.00016438,2]
[366361291,1750211440760,-490.0,0.00016438,2]
[366361292,1750211440770,-490.0,0.00016438,2]
[366361293,1750211440780,-823.22,0.00016438,2]
[366361294,1750211440792,-490.0,0.00016438,2]
[366361295,1750211440801,-673.89,0.00016438,2]
[366361296,1750211440811,-490.0,0.00016438,2]
[366361297,1750211440820,-696.22,0.00016438,2]
[366361298,1750211440831,-490.0,0.00016438,2]
[366361299,1750211440840,-687.99,0.00016438,2]
[366361300,1750211440850,-756.07,0.00016438,2]
[366361301,1750211440860,-599.54,0.00016438,2]
[366361302,1750211440869,-1341.49,0.00016438,2]
[366361303,1750211440879,-490.0,0.00016438,2]
[366361304,1750211440889,-813.02,0.00016438,2]
[366361305,1750211440898,-490.0,0.00016438,2]
[366361306,1750211440908,-1436.25,0.00016438,2]
[366361307,1750211440917,-922.45,0.00016438,2]
[366361308,1750211440927,-732.86,0.00016438,2]
[366361309,1750211440937,-490.0,0.00016438,2]
[366361310,1750211440946,-1331.82,0.00016438,2]
[366361311,1750211440956,-490.0,0.00016438,2]
[366361312,1750211440965,-490.0,0.00016438,2]
[366361313,1750211440975,-1174.2,0.00016438,2]
[366361314,1750211440985,-609.63,0.00016438,2]
[366361315,1750211440995,-953.59,0.00016438,2]
[366361316,1750211441005,-1874.72,0.00016438,2]
[366361317,1750211441014,-361.12507706,0.00016438,2]
[366361318,1750211441058,-128.87492294,0.00016438,2]
[366361319,1750211441069,-920.90093116,0.00016438,2]
[366361320,1750211441082,-491.91273479,0.00016438,2]
[366361321,1750211441094,-90.44633405,0.00016438,2]
[366361322,1750211441104,-490.0,0.00016438,2]
[366361323,1750211441114,-561.24,0.00016438,2]
[366361324,1750211441124,-1158.4,0.00016438,2]
[366361325,1750211441133,-151.0,0.00016438,2]
[366361326,1750211441143,-239.025451,0.00016438,2]
[366361327,1750211441154,-431.75625085,0.00016438,2]
[366361328,1750211441166,-972.43374915,0.00016438,2]
[366361329,1750211441176,-548.44,0.00016438,2]
[366361330,1750211441185,-1001.35,0.00016438,2]
[366361331,1750211441195,-827.43,0.00016438,2]
[366361332,1750211441205,-490.0,0.00016438,2]
[366361333,1750211441215,-490.0,0.00016438,2]
[366361334,1750211441224,-532.13,0.00016438,2]
[366361335,1750211441234,-725.48,0.00016438,2]
[366361336,1750211441244,-490.0,0.00016438,2]
[366361337,1750211441253,-1111.82,0.00016438,2]
[366361338,1750211441264,-289.77282064,0.00016438,2]
[366361373,1750211463849,-232.0,0.00013219,2]
[366361374,1750211498807,3006.0,0.00024658,120]
[366361398,1750212631775,-222.61,0.00013699,2]
[366361399,1750212631785,-2073.41751347,0.00014243,2]
[366361400,1750212631932,-764.0,0.00014243,2]
[366361401,1750212631946,-2728.5925892,0.00014243,2]
[366361402,1750212631958,-383.12875825,0.00014243,2]
[366361403,1750212631969,-574.6,0.00014243,2]
[366361437,1750212632513,-660.07649348,0.00014243,2]
[366361439,1750212632522,-138.2514947,0.00014746,2]
[366361441,1750212632535,-64.7485053,0.00014746,2]
[366361443,1750212632544,-351.12619406,0.00015023,2]
[366361446,1750212632563,-181.43380594,0.00015023,2]
[366361448,1750212632572,-200.0,0.00015054,2]
[366361450,1750212632580,-850.41751447,0.00015064,2]
[366361452,1750212632591,-578.59140228,0.00015064,2]
[366361454,1750212632602,-864.14261092,0.00015064,2]
[366361464,1750212632689,-2032.3887144,0.00015064,2]
[366361467,1750212632701,-251.60975793,0.00015064,2]
[366361469,1750212632711,-200.0,0.000151,2]
[366361471,1750212632720,-170.97,0.00015102,2]
[366361473,1750212632730,-315.9417338,0.00015217,2]
[366361475,1750212632739,-1200.0,0.00015235,2]
[366361477,1750212632749,-2671.34,0.00015236,2]
[366361479,1750212632759,-524.49,0.00015284,2]
[366361481,1750212632773,-250.0,0.00015358,2]
[366361483,1750212632782,-300.0,0.00015479,2]
[366361485,1750212632792,-121.25562318,0.0001548,2]
[366361487,1750212632804,-75.14437682,0.0001548,2]
[366361489,1750212632815,-676.45,0.00015499,2]
[366361491,1750212632824,-1000.0,0.0001552,2]
[366361493,1750212632834,-196.4,0.00015557,2]
[366361495,1750212632846,-782.1897016,0.00015573,2]
[366361497,1750212632855,-163.48,0.00015678,2]
[366361499,1750212632865,-167.62,0.00015693,2]
[366361501,1750212632874,-151.0,0.00015716,2]
[366361503,1750212632884,-1957.856,0.00015716,2]
[366361505,1750212632894,-207.4,0.00015716,2]
[366361507,1750212632903,-785.92770803,0.00015771,2]
[366361790,1750212637880,-1178.9475446,0.00015771,2]
[366361812,1750212639891,-1000.0,0.00015415,2]
[366361813,1750212639902,-65.42141937,0.00015771,2]
[366361814,1750212639913,-2105.41764886,0.00015826,2]
[366361815,1750212639923,-2183.31810187,0.00015881,2]
[366361816,1750212639933,-1388.1982469,0.00015936,2]
[366361817,1750212639944,-302.76,0.00016128,2]
[366361818,1750212639954,-509.29,0.00016136,2]
[366361819,1750212639963,-496.5,0.00016136,2]
[366361820,1750212639973,-493.71,0.00016136,2]
[366361821,1750212639983,-302.74,0.0001615,2]
[366361822,1750212639993,-300.65,0.0001615,2]
[366361823,1750212640003,-502.69,0.00016203,2]
[366361824,1750212640013,-496.14,0.00016203,2]
[366361825,1750212640023,-493.36,0.00016203,2]
[366361826,1750212640033,-203.0,0.00016206,3]
[366361827,1750212640043,-570.42367599,0.00016232,2]
[366361828,1750212640053,-2500.0,0.00016329,2]
[366361829,1750212640063,-597.73203038,0.00016337,2]
[366361830,1750212640073,-766.89041776,0.00016338,2]
[366361831,1750212640085,-151.51220735,0.00016338,2]
[366361832,1750212640094,-158.16802275,0.00016338,2]
[366361833,1750212640104,-359.44976326,0.00016338,2]
[366361834,1750212640114,-285.2855,0.00016338,2]
[366361835,1750212640124,-582.5767,0.00016338,2]
[366361836,1750212640133,-150.0,0.00016354,2]
[366361837,1750212640143,-151.51220733,0.00016393,2]
[366361838,1750212640153,-597.73203029,0.00016398,2]
[366361839,1750212640162,-1493.92959197,0.000164,2]
[366361840,1750212640175,-646.08261484,0.000164,2]
[366361841,1750212640187,-871.984808,0.000164,2]
[366361842,1750212640226,-908.28939321,0.000164,2]
[366361843,1750212640238,-349.81975108,0.000164,2]
[366361844,1750212640249,-729.8938409,0.000164,2]
[366361845,1750212640259,-326.8,0.000164,2]
[366361846,1750212640269,-150.0,0.000164,2]
[366361847,1750212640279,-168.21,0.00016419,2]
[366361848,1750212640288,-293.49,0.00016419,2]
[366361849,1750212640299,-480.20544535,0.00016428,2]
[366361851,1750212640310,-644.69928499,0.00016428,2]
[366361854,1750212640323,-500.0,0.00016428,2]
[366361855,1750212640334,-616.40829382,0.00016428,2]
[366361856,1750212640344,-500.0,0.00016428,2]
[366361857,1750212640354,-252.36253086,0.00016428,2]
[366361858,1750212640364,-500.0,0.00016428,2]
[366361859,1750212640374,-12580.1889325,0.00016429,2]
[366361860,1750212640384,-19615.37768385,0.00016429,2]
[366361861,1750212640400,-1293.16940294,0.00016429,2]
[366361862,1750212640412,-1551.41745399,0.00016429,2]
[366361863,1750212640465,-170768.69452202,0.00016429,2]
[366361864,1750212640475,-150.0,0.00016435,2]
[366361865,1750212640486,-7514.35764401,0.00016437,2]
[366361866,1750212640496,-135451.99901167,0.00016437,2]
[366361867,1750212640512,-5455.02765609,0.00016437,2]
[366361868,1750212640614,-13672.27663193,0.00016437,2]
[366361881,1750212643697,-1548.37657066,0.00016437,2]
[366361882,1750212643710,-11277.95119962,0.00016437,2]
[366361883,1750212643769,-665.159998,0.00016437,2]
[366361884,1750212643781,-892.0,0.00016437,2]
[366361885,1750212643793,-132382.73483509,0.00016437,2]
[366361886,1750212643803,-833.87704394,0.00016438,2]
[366361887,1750212643813,-787.0,0.00016438,2]
[366361888,1750212643823,-490.0,0.00016438,2]
[366361889,1750212643833,-490.0,0.00016438,2]
[366361890,1750212643842,-490.0,0.00016438,2]
[366361891,1750212643851,-490.0,0.00016438,2]
[366361892,1750212643862,-490.0,0.00016438,2]
[366361893,1750212643871,-606.22,0.00016438,2]
[366361894,1750212643881,-151.0,0.00016438,2]
[366361895,1750212643891,-151.0,0.00016438,2]
[366361896,1750212643901,-151.0,0.00016438,2]
[366361897,1750212643911,-151.0,0.00016438,2]
[366361898,1750212643921,-151.0,0.00016438,2]
[366361899,1750212643931,-209.151241,0.00016438,2]
[366361900,1750212643942,-578.39,0.00016438,2]
[366361901,1750212643952,-490.0,0.00016438,2]
[366361902,1750212643963,-493.6860886,0.00016438,2]
[366361903,1750212643973,-540.76804514,0.00016438,2]
[366361904,1750212643983,-490.0,0.00016438,2]
[366361905,1750212643993,-490.0,0.00016438,2]
[366361906,1750212644003,-492.44875015,0.00016438,2]
[366361907,1750212644012,-490.0,0.00016438,2]
[366361908,1750212644022,-490.0,0.00016438,2]
[366361909,1750212644031,-490.0,0.00016438,2]
[366361910,1750212644041,-490.0,0.00016438,2]
[366361911,1750212644051,-490.0,0.00016438,2]
[366361912,1750212644061,-490.0,0.00016438,2]
[366361913,1750212644070,-490.0,0.00016438,2]
[366361914,1750212644080,-490.0,0.00016438,2]
[366361915,1750212644090,-492.24670829,0.00016438,2]
[366361916,1750212644100,-925.92,0.00016438,2]
[366361917,1750212644110,-490.0,0.00016438,2]
[366361918,1750212644120,-492.75138597,0.00016438,2]
[366361919,1750212644130,-490.0,0.00016438,2]
[366361920,1750212644139,-610.8,0.00016438,2]
[366361921,1750212644148,-490.0,0.00016438,2]
[366361922,1750212644158,-493.56745759,0.00016438,2]
[366361923,1750212644168,-451.15743889,0.00016438,2]
[366361924,1750212644178,-1341.03,0.00016438,2]
[366361925,1750212644187,-493.75301564,0.00016438,2]
[366361926,1750212644197,-492.10118162,0.00016438,2]
[366361927,1750212644206,-475.62615993,0.00016438,2]
[366361928,1750212644216,-490.0,0.00016438,2]
[366361929,1750212644225,-815.55,0.00016438,2]
[366361930,1750212644235,-490.0,0.00016438,2]
[366361931,1750212644245,-490.0,0.00016438,2]
[366361932,1750212644254,-490.0,0.00016438,2]
[366361933,1750212644264,-490.0,0.00016438,2]
[366361934,1750212644274,-490.0,0.00016438,2]
[366361935,1750212644284,-951.57,0.00016438,2]
[366361936,1750212644294,-490.0,0.00016438,2]
[366361937,1750212644303,-490.0,0.00016438,2]
[366361938,1750212644312,-490.0,0.00016438,2]
[366361939,1750212644321,-687.62,0.00016438,2]
[366361940,1750212644330,-493.76367778,0.00016438,2]
[366361941,1750212644339,-490.0,0.00016438,2]
[366361942,1750212644351,-1065.5,0.00016438,2]
[366361943,1750212644360,-490.0,0.00016438,2]
[366361944,1750212644370,-490.0,0.00016438,2]
[366361945,1750212644380,-817.95,0.00016438,2]
[366361946,1750212644389,-490.0,0.00016438,2]
[366361947,1750212644400,-433.1330557,0.00016438,2]
[366361948,1750212644410,-490.0,0.00016438,2]
[366361949,1750212644420,-437.32697245,0.00016438,2]
[366361950,1750212644430,-490.0,0.00016438,2]
[366361951,1750212644441,-490.0,0.00016438,2]
[366361952,1750212644451,-491.74403656,0.00016438,2]
[366361953,1750212644465,-703.36,0.00016438,2]